lending/lending_fUSD_20250913
["ID","MTS","AMOUNT","RATE_DAILY","PERIOD"]
[385323358,1757775032785,-12696.4106173,0.00026553,2]
[385323360,1757775032795,-13250.71067605,0.00026563,2]
[385323362,1757775032804,-182.88,0.00026641,2]
[385323364,1757775032814,-2968.92173109,0.00026728,2]
[385323367,1757775032826,-6254.74895343,0.00026728,2]
[385323369,1757775032837,-501.46850775,0.00026728,2]
[385323374,1757775032874,-657.51341949,0.00026728,2]
[385323376,1757775032883,-1680.0,0.00026731,2]
[385323378,1757775032892,-297.0,0.00027,7]
[385323380,1757775032901,-500.0,0.00027,2]
[385323382,1757775032910,-250.0,0.00027008,2]
[385323384,1757775032919,-164.91433948,0.0002707,2]
[385323386,1757775032928,-12696.4106173,0.00027223,2]
[385323387,1757775032937,-151.0,0.0002723,7]
[385323390,1757775032947,-13250.71067605,0.00027233,2]
[385323392,1757775032956,-150.0,0.00027345,2]
[385323394,1757775032965,-164.31133976,0.00027345,2]
[385323396,1757775032974,-150.0,0.00027345,2]
[385323398,1757775032984,-163.61928261,0.00027345,2]
[385323400,1757775032993,-198.47671589,0.00027345,2]
[385323402,1757775033002,-158.84091403,0.00027345,2]
[385323403,1757775033013,-164.88859672,0.00027345,2]
[385323406,1757775033023,-10382.65261176,0.00027371,2]
[385323407,1757775033032,-151.5,0.00027397,2]
[385323409,1757775033042,-500.0,0.00027538,2]
[385323412,1757775033052,-182.88,0.0002764,2]
[385323413,1757775033061,-297.0,0.00027671,14]
[385323415,1757775033070,-311.06,0.00027778,2]
[385323417,1757775033081,-13250.71067605,0.00027904,2]
[385323420,1757775033092,-12696.4106173,0.00028003,2]
[385323422,1757775033103,-10382.65261176,0.00028013,2]
[385323423,1757775033111,-12696.4106173,0.00028034,2]
[385323425,1757775033121,-14493.34337235,0.00028034,2]
[385323428,1757775033133,-1448.74769752,0.00028034,2]
[385323430,1757775033148,-4128.99966443,0.00028034,2]
[385323432,1757775033158,-322.6107,0.00028044,2]
[385323434,1757775033168,-151.0,0.00028044,2]
[385323436,1757775033178,-151.0,0.00028044,2]
[385323438,1757775033187,-721.12765535,0.00028044,2]
[385323440,1757775033197,-250.0,0.00028044,2]
[385323442,1757775033207,-250.0,0.00028044,2]
[385323444,1757775033217,-250.0,0.00028044,2]
[385323446,1757775033227,-250.0,0.00028044,2]
[385323448,1757775033237,-151.0,0.00028044,2]
[385323450,1757775033246,-250.0,0.00028044,2]
[385323452,1757775033256,-151.0,0.00028044,2]
[385323454,1757775033268,-250.0,0.00028044,2]
[385323456,1757775033277,-151.0,0.00028044,2]
[385323458,1757775033286,-250.0,0.00028044,2]
[385323460,1757775033296,-297.0,0.00028044,2]
[385323462,1757775033305,-250.0,0.00028044,2]
[385323464,1757775033315,-250.0,0.00028044,2]
[385323466,1757775033325,-250.0,0.00028044,2]
[385323468,1757775033335,-603.72602487,0.00028044,2]
[385323470,1757775033346,-608.66542855,0.00028044,2]
[385323473,1757775033359,-396.42185645,0.00028044,2]
[385323475,1757775033372,-6948.26836945,0.00028044,2]
[385323477,1757775033382,-255.73156055,0.00028044,2]
[385323480,1757775033399,-244.26843945,0.00028044,2]
[385323482,1757775033409,-250.0,0.00028044,2]
[385323483,1757775033419,-500.0,0.00028044,2]
[385323485,1757775033430,-500.0,0.00028044,2]
[385323487,1757775033440,-500.0,0.00028044,2]
[385323489,1757775033450,-500.0,0.00028044,2]
[385323492,1757775033460,-500.0,0.00028044,2]
[385323494,1757775033470,-151.0,0.00028044,2]
[385323496,1757775033479,-500.0,0.00028044,2]
[385323498,1757775033488,-500.0,0.00028044,2]
[385323499,1757775033498,-500.0,0.00028044,2]
[385323501,1757775033507,-500.0,0.00028044,2]
[385323503,1757775033519,-500.0,0.00028044,2]
[385323505,1757775033528,-160.0,0.00028044,2]
[385323507,1757775033538,-384.28007285,0.00028044,2]
[385323509,1757775033548,-531.00996454,0.00028044,2]
[385323511,1757775033558,-151.0,0.00028044,2]
[385323514,1757775033568,-151.0,0.00028044,2]
[385323515,1757775033579,-151.0,0.00028044,2]
[385323518,1757775033588,-151.0,0.00028044,2]
[385323519,1757775033598,-151.0,0.00028044,2]
[385323522,1757775033607,-151.0,0.00028044,2]
[385323524,1757775033617,-151.0,0.00028044,2]
[385323526,1757775033627,-151.0,0.00028044,2]
[385323528,1757775033637,-282.0,0.00028044,2]
[385323530,1757775033646,-1000.0,0.00028044,2]
[385323531,1757775033656,-1000.0,0.00028044,2]
[385323534,1757775033665,-1015.89762699,0.00028044,2]
[385323535,1757775033674,-1000.0,0.00028044,2]
[385323537,1757775033684,-277.35679052,0.00028044,2]
[385323539,1757775033693,-981.80568643,0.00028044,2]
[385323542,1757775033705,-18.19431357,0.00028044,2]
[385323544,1757775033714,-407.50713749,0.00028044,2]
[385323546,1757775033725,-592.49286251,0.00028044,2]
[385323548,1757775033735,-1000.0,0.00028044,2]
[385323550,1757775033744,-156.58114375,0.00028044,2]
[385323552,1757775033754,-250.0,0.00028044,2]
[385323554,1757775033764,-250.0,0.00028044,2]
[385323556,1757775033773,-250.0,0.00028044,2]
[385323558,1757775033783,-238.21497886,0.00028044,2]
[385323560,1757775033792,-152.34188959,0.00028099,2]
[385323562,1757775033802,-164.91433948,0.00028347,2]
[385323564,1757775033811,-584.68150684,0.00028373,2]
[385323566,1757775033827,-606.28849316,0.00028373,2]
[385323568,1757775033836,-960.43926446,0.00028574,2]
[385323570,1757775033847,-832.81020728,0.00028574,2]
[385323711,1757775038177,-400.0,0.00028574,2]
[385323713,1757775038188,-727.46326589,0.00028574,2]
[385323869,1757775039951,-435.22115147,0.00028574,2]
[385323878,1757775040048,-9871.60829613,0.00028574,2]
[385323889,1757775044021,-23.16849082,0.00028574,2]
[385323890,1757775044032,-71.23280228,0.00028592,2]
[385323891,1757775044058,-79.76719772,0.00028592,2]
[385323892,1757775044068,-151.0,0.00028592,2]
[385323893,1757775044461,-47.25476485,0.00028592,2]
[385323905,1757775044895,-103.74523515,0.00028592,2]
[385323906,1757775044905,-182.88,0.00028639,2]
[385323907,1757775044915,-105.57946485,0.00028646,2]
[385323914,1757775046044,-1216.22158215,0.00028646,2]
[385323915,1757775046189,-350.03420307,0.00028646,2]
[385323916,1757775046201,-379.59051729,0.00028646,2]
[385323917,1757775046213,-3457.79437244,0.00028646,2]
[385323918,1757775046270,-4526.3252273,0.00028646,2]
[385323919,1757775046280,-200.0,0.00028647,2]
[385323920,1757775046290,-10382.65261176,0.00028656,2]
[385323921,1757775046299,-297.0,0.00028767,14]
[385323922,1757775046309,-200.0,0.00028767,2]
[385323923,1757775046318,-150.0,0.00028864,7]
[385323924,1757775046328,-10035.5453671,0.00028979,2]
[385323925,1757775046337,-10035.5453671,0.0002898,2]
[385323926,1757775046347,-951.78634453,0.00028983,2]
[385323927,1757775046357,-12696.4106173,0.00028989,2]
[385323928,1757775046366,-25392.8212347,0.0002899,2]
[385323929,1757775046376,-5449.93790278,0.0002899,2]
[385323930,1757775046388,-1018.72594151,0.0002899,2]
[385323931,1757775046408,-1922.71498704,0.0002899,2]
[385324016,1757775088061,1093.553,0.00029896,24]
[385324017,1757775088092,182.553,0.00029896,24]
[385324021,1757775209151,156.75,0.00032,30]
[385324022,1757775228307,164.91433948,0.0002977,15]
[385324024,1757775413563,10000.0,0.00032,30]
[385324025,1757775417369,10000.0,0.00032,30]
[385324026,1757775460404,444.91,0.00027878,120]
[385324027,1757775460466,444.91,0.00031363,120]
[385324029,1757775688023,874.843,0.00029931,24]
[385324030,1757775688083,182.55345515,0.00029931,24]
[385324031,1757775731231,308.0,0.0003,15]
[385324032,1757775747556,150.96,0.00013457,2]
[385324033,1757775749763,150.96,0.00014952,2]
[385324034,1757775750723,150.96,0.00016448,2]
[385324035,1757775750902,150.96,0.00017943,2]
[385324036,1757775751059,150.96,0.00019438,2]
[385324037,1757775984021,162.09,0.00027425,30]
[385324038,1757776165115,-150.96,0.00020933,2]
[385324039,1757776165139,-150.96,0.00022429,2]
[385324040,1757776165160,-150.96,0.00023924,2]
[385324041,1757776165181,-157.11,0.00024607,2]
[385324042,1757776165203,-418.56420742,0.00024898,2]
[385324043,1757776165226,-215.34155788,0.00024898,2]
[385324044,1757776165247,-254.93108436,0.00024898,2]
[385324045,1757776165270,-1200.0,0.00024898,2]
[385324046,1757776165290,-300.0,0.00024898,2]
[385324047,1757776165311,-1825.22178255,0.00024899,5]
[385324056,1757776232697,-1200.0,0.00024898,2]
[385324057,1757776232706,-18060.82982866,0.00024899,5]
[385324058,1757776232718,-670.76609286,0.00024899,5]
[385324059,1757776232797,-515.09617921,0.00024899,5]
[385324060,1757776232845,-5969.18766582,0.00024899,5]
[385324274,1757776238203,-5832.89182072,0.00024899,5]
[385324277,1757776238502,-18137.43114534,0.00024899,5]
[385324350,1757776240604,-13127.6096928,0.00024899,5]
[385324351,1757776240616,-296.02822667,0.00024899,5]
[385324352,1757776240651,-346.07001469,0.00024899,5]
[385324396,1757776243511,-46499.88033561,0.00024899,5]
[385324397,1757776243520,-152.62,0.000249,2]
[385324398,1757776243529,-151.41,0.000249,2]
[385324399,1757776243539,-152.82,0.000249,2]
[385324400,1757776243548,-152.89,0.000249,2]
[385324401,1757776243557,-150.28,0.000249,2]
[385324402,1757776243567,-150.1,0.000249,2]
[385324403,1757776243576,-2995.42975161,0.000249,2]
[385324404,1757776243585,-150.82,0.000249,2]
[385324405,1757776243595,-150.0,0.000252,2]
[385324406,1757776243604,-192.0,0.000252,2]
[385324407,1757776243614,-331.60120998,0.000252,2]
[385324408,1757776243623,-150.96,0.00025419,2]
[385324409,1757776243632,-166.49,0.00025916,2]
[385324410,1757776243642,-1000.01,0.00026,2]
[385324411,1757776243651,-167.0,0.00026361,2]
[385324412,1757776243663,-174.3036435,0.00026877,2]
[385324413,1757776243672,-161.96325461,0.00026877,2]
[385324414,1757776243682,-150.0,0.00026891,7]
[385324415,1757776243692,-150.96,0.00026914,2]
[385324416,1757776243702,-457.52,0.00026928,2]
[385324417,1757776243711,-1000.0,0.00026928,2]
[385324418,1757776243721,-250.0,0.00026978,2]
[385324420,1757776243732,-352.9,0.00027027,2]
[385324422,1757776243743,-173.0,0.00027068,2]
[385324424,1757776243752,-1512.0,0.00027098,2]
[385324426,1757776243761,-150.0,0.00027139,2]
[385324428,1757776243771,-478.83,0.0002717,2]
[385324430,1757776243780,-209.71461008,0.00027263,2]
[385324432,1757776243790,-4292.6351607,0.00027297,2]
[385324434,1757776243799,-200.0,0.00027381,2]
[385324435,1757776243809,-600.0,0.00027381,2]
[385324436,1757776243819,-500.0,0.00027381,2]
[385324437,1757776243828,-1402.9,0.00027387,2]
[385324438,1757776243838,-400.0,0.00027397,2]
[385324439,1757776243847,-400.0,0.00027397,2]
[385324440,1757776243857,-400.0,0.00027397,2]
[385324441,1757776243867,-1055.67,0.00027397,2]
[385324442,1757776243878,-1392.86,0.00027397,2]
[385324443,1757776243888,-907.26,0.00027397,2]
[385324444,1757776243897,-400.0,0.00027397,2]
[385324445,1757776243907,-400.0,0.00027397,2]
[385324446,1757776243916,-400.0,0.00027397,2]
[385324448,1757776243926,-832.23,0.00027397,2]
[385324450,1757776243935,-400.0,0.00027397,2]
[385324451,1757776243944,-400.0,0.00027397,2]
[385324452,1757776243953,-885.54,0.00027397,2]
[385324453,1757776243962,-925.27,0.00027397,2]
[385324454,1757776243972,-400.0,0.00027397,2]
[385324455,1757776243981,-1295.53,0.00027397,2]
[385324456,1757776243991,-974.14,0.00027397,2]
[385324457,1757776244000,-818.78,0.00027397,2]
[385324458,1757776244009,-402.3307958,0.00027397,2]
[385324459,1757776244018,-400.0,0.00027397,2]
[385324460,1757776244028,-563.58,0.00027397,2]
[385324461,1757776244037,-400.0,0.00027397,2]
[385324462,1757776244047,-956.73,0.00027397,2]
[385324463,1757776244056,-1098.01,0.00027397,2]
[385324464,1757776244065,-785.21,0.00027397,2]
[385324465,1757776244075,-620.36,0.00027397,2]
[385324466,1757776244084,-400.0,0.00027397,2]
[385324467,1757776244094,-526.73,0.00027397,2]
[385324468,1757776244104,-809.67,0.00027397,2]
[385324469,1757776244113,-400.0,0.00027397,2]
[385324470,1757776244122,-690.57,0.00027397,2]
[385324471,1757776244131,-400.0,0.00027397,2]
[385324472,1757776244141,-980.46,0.00027397,2]
[385324473,1757776244150,-400.0,0.00027397,2]
[385324474,1757776244160,-400.0,0.00027397,2]
[385324475,1757776244169,-1301.71,0.00027397,2]
[385324476,1757776244179,-804.23,0.00027397,2]
[385324477,1757776244188,-400.0,0.00027397,2]
[385324478,1757776244198,-752.35,0.00027397,2]
[385324479,1757776244207,-519.24,0.00027397,2]
[385324480,1757776244218,-400.0,0.00027397,2]
[385324481,1757776244229,-812.08,0.00027397,2]
[385324482,1757776244239,-797.62,0.00027397,2]
[385324483,1757776244249,-400.0,0.00027397,2]
[385324484,1757776244258,-400.0,0.00027397,2]
[385324485,1757776244267,-642.57,0.00027397,2]
[385324486,1757776244276,-713.26,0.00027397,2]
[385324487,1757776244285,-784.93,0.00027397,2]
[385324488,1757776244294,-400.0,0.00027397,2]
[385324489,1757776244304,-784.93,0.00027397,2]
[385324490,1757776244313,-670.74,0.00027397,2]
[385324491,1757776244322,-747.88,0.00027397,2]
[385324492,1757776244331,-648.0,0.00027397,2]
[385324493,1757776244341,-400.0,0.00027397,2]
[385324494,1757776244352,-1095.08,0.00027397,2]
[385324495,1757776244362,-512.17,0.00027397,2]
[385324496,1757776244371,-668.99,0.00027397,2]
[385324497,1757776244381,-490.84,0.00027397,2]
[385324498,1757776244390,-400.0,0.00027397,2]
[385324499,1757776244399,-934.73,0.00027397,2]
[385324500,1757776244408,-400.0,0.00027397,2]
[385324501,1757776244616,-749.04,0.00027397,2]
[385324502,1757776244628,-1168.27,0.00027397,2]
[385324503,1757776244637,-766.66,0.00027397,2]
[385324504,1757776244646,-400.0,0.00027397,2]
[385324505,1757776244659,-823.42,0.00027397,2]
[385324506,1757776244669,-400.0,0.00027397,2]
[385324507,1757776244678,-821.37,0.00027397,2]
[385324508,1757776244688,-702.86,0.00027397,2]
[385324509,1757776244697,-736.33,0.00027397,2]
[385324510,1757776244707,-1015.27,0.00027397,2]
[385324511,1757776244716,-400.0,0.00027397,2]
[385324512,1757776244725,-455.76,0.00027397,2]
[385324513,1757776244734,-400.0,0.00027397,2]
[385324514,1757776244743,-762.5,0.00027397,2]
[385324515,1757776244752,-400.0,0.00027397,2]
[385324516,1757776244762,-631.89,0.00027397,2]
[385324517,1757776244771,-479.69,0.00027397,2]
[385324518,1757776244781,-529.53455928,0.00027397,2]
[385324519,1757776244792,-751.63,0.00027397,2]
[385324520,1757776244811,-400.0,0.00027397,2]
[385324521,1757776244825,-649.31,0.00027397,2]
[385324522,1757776244834,-830.89,0.00027397,2]
[385324523,1757776244844,-400.0,0.00027397,2]
[385324524,1757776244854,-887.73,0.00027397,2]
[385324525,1757776244863,-689.99,0.00027397,2]
[385324526,1757776244873,-400.0,0.00027397,2]
[385324527,1757776244882,-400.0,0.00027397,2]
[385324528,1757776244891,-928.81,0.00027397,2]
[385324529,1757776244901,-705.01,0.00027397,2]
[385324530,1757776244910,-501.53,0.00027397,2]
[385324531,1757776244920,-500.0,0.00027397,2]
[385324532,1757776244929,-500.0,0.00027397,2]
[385324533,1757776244938,-1720.04,0.00027397,2]
[385324534,1757776244947,-920.03,0.00027397,2]
[385324535,1757776244957,-1110.31,0.00027397,2]
[385324536,1757776244966,-879.78,0.00027397,2]
[385324537,1757776244975,-881.57,0.00027397,2]
[385324538,1757776244984,-1349.43,0.00027397,2]
[385324539,1757776244994,-819.44,0.00027397,2]
[385324540,1757776245004,-1101.43,0.00027397,2]
[385324541,1757776245014,-646.75,0.00027397,2]
[385324542,1757776245023,-709.48,0.00027397,2]
[385324543,1757776245032,-877.3,0.00027397,2]
[385324544,1757776245042,-400.0,0.00027397,2]
[385324545,1757776245051,-618.04,0.00027397,2]
[385324546,1757776245060,-400.0,0.00027397,2]
[385324547,1757776245070,-500.0,0.00027397,2]
[385324548,1757776245079,-400.0,0.00027397,2]
[385324549,1757776245089,-479.29,0.00027397,2]
[385324550,1757776245099,-778.2,0.00027397,2]
[385324551,1757776245108,-400.0,0.00027397,2]
[385324552,1757776245118,-532.11,0.00027397,2]
[385324553,1757776245128,-916.49,0.00027397,2]
[385324554,1757776245138,-1869.85,0.00027397,2]
[385324555,1757776245148,-605.54,0.00027397,2]
[385324556,1757776245158,-400.0,0.00027397,2]
[385324557,1757776245168,-1091.76,0.00027397,2]
[385324558,1757776245177,-657.65,0.00027397,2]
[385324559,1757776245187,-608.7,0.00027397,2]
[385324560,1757776245197,-647.42,0.00027397,2]
[385324561,1757776245207,-2732.51,0.00027397,2]
[385324562,1757776245216,-920.38,0.00027397,2]
[385324563,1757776245225,-1333.33,0.00027397,2]
[385324564,1757776245234,-400.0,0.00027397,2]
[385324565,1757776245244,-400.0,0.00027397,2]
[385324566,1757776245254,-400.0,0.00027397,2]
[385324567,1757776245264,-810.17,0.00027397,2]
[385324568,1757776245274,-607.05,0.00027397,2]
[385324569,1757776245284,-400.0,0.00027397,2]
[385324570,1757776245294,-731.54,0.00027397,2]
[385324571,1757776245304,-400.0,0.00027397,2]
[385324572,1757776245314,-797.17,0.00027397,2]
[385324573,1757776245325,-491.5,0.00027397,2]
[385324574,1757776245335,-931.48,0.00027397,2]
[385324575,1757776245344,-523.76,0.00027397,2]
[385324576,1757776245353,-450.16,0.00027397,2]
[385324577,1757776245363,-977.53,0.00027397,2]
[385324578,1757776245372,-739.88,0.00027397,2]
[385324579,1757776245382,-884.88,0.00027397,2]
[385324580,1757776245393,-762.13,0.00027397,2]
[385324581,1757776245403,-812.34,0.00027397,2]
[385324582,1757776245412,-721.5,0.00027397,2]
[385324583,1757776245421,-930.89,0.00027397,2]
[385324584,1757776245431,-824.19,0.00027397,2]
[385324585,1757776245440,-710.17,0.00027397,2]
[385324586,1757776245449,-923.95,0.00027397,2]
[385324587,1757776245458,-585.84,0.00027397,2]
[385324588,1757776245467,-400.0,0.00027397,2]
[385324589,1757776245477,-500.0,0.00027397,2]
[385324590,1757776245486,-400.0,0.00027397,2]
[385324591,1757776245495,-500.0,0.00027397,2]
[385324592,1757776245504,-767.61,0.00027397,2]
[385324593,1757776245513,-1029.18,0.00027397,2]
[385324594,1757776245523,-693.98,0.00027397,2]
[385324595,1757776245532,-445.08,0.00027397,2]
[385324596,1757776245541,-704.82,0.00027397,2]
[385324597,1757776245555,-400.0,0.00027397,2]
[385324598,1757776245564,-400.0,0.00027397,2]
[385324599,1757776245575,-1019.75,0.00027397,2]
[385324600,1757776245585,-869.44,0.00027397,2]
[385324601,1757776245595,-798.34,0.00027397,2]
[385324602,1757776245605,-2109.76,0.00027397,2]
[385324603,1757776245615,-612.46,0.00027397,2]
[385324604,1757776245625,-818.33,0.00027397,2]
[385324605,1757776245636,-400.0,0.00027397,2]
[385324606,1757776245646,-602.37,0.00027397,2]
[385324607,1757776245659,-1021.21,0.00027397,2]
[385324608,1757776245669,-400.0,0.00027397,2]
[385324609,1757776245680,-939.25,0.00027397,2]
[385324610,1757776245690,-1110.52,0.00027397,2]
[385324611,1757776245702,-851.12,0.00027397,2]
[385324612,1757776245712,-596.01,0.00027397,2]
[385324613,1757776245722,-159.14809467,0.00027397,2]
[385324614,1757776245733,-611.96,0.00027397,2]
[385324615,1757776245743,-871.53,0.00027397,2]
[385324616,1757776245753,-744.56,0.00027397,2]
[385324617,1757776245763,-867.52,0.00027397,2]
[385324618,1757776245774,-670.99,0.00027397,2]
[385324619,1757776245783,-783.49,0.00027397,2]
[385324620,1757776245793,-753.44,0.00027397,2]
[385324621,1757776245803,-613.89,0.00027397,2]
[385324622,1757776245814,-400.0,0.00027397,2]
[385324623,1757776245824,-661.36,0.00027397,2]
[385324624,1757776245834,-400.0,0.00027397,2]
[385324625,1757776245844,-612.95,0.00027397,2]
[385324626,1757776245854,-984.27,0.00027397,2]
[385324627,1757776245863,-1602.35,0.00027397,2]
[385324628,1757776245873,-757.51,0.00027397,2]
[385324629,1757776245883,-834.52,0.00027397,2]
[385324630,1757776245893,-948.54,0.00027397,2]
[385324631,1757776245903,-400.0,0.00027397,2]
[385324632,1757776245913,-985.78,0.00027397,2]
[385324633,1757776245923,-671.14,0.00027397,2]
[385324634,1757776245933,-811.09,0.00027397,2]
[385324635,1757776245942,-2622.41,0.00027397,2]
[385324636,1757776245952,-636.2,0.00027397,2]
[385324637,1757776245962,-903.8,0.00027397,2]
[385324639,1757776245972,-970.93,0.00027397,2]
[385324640,1757776245981,-681.1,0.00027397,2]
[385324641,1757776245991,-1194.96,0.00027397,2]
[385324642,1757776246001,-637.48,0.00027397,2]
[385324643,1757776246011,-421.38,0.00027397,2]
[385324645,1757776246021,-2679.54963394,0.00027397,2]
[385324700,1757776246790,-245.96157973,0.00027386,2]
[385324701,1757776246800,-490.58564044,0.00027397,2]
[385324702,1757776246838,-4070.64884053,0.00027397,2]
[385324703,1757776246866,-790.25588509,0.00027397,2]
[385324704,1757776246876,-772.31,0.00027397,2]
[385324705,1757776246885,-717.91022405,0.00027397,2]
[385324706,1757776246897,-39.26977595,0.00027397,2]
[385324707,1757776246906,-612.06006405,0.00027397,2]
[385324708,1757776246918,-383.5086327,0.00027397,2]
[385324709,1757776246929,-94.12130325,0.00027397,2]
[385324710,1757776246939,-785.39,0.00027397,2]
[385324711,1757776246948,-400.0,0.00027397,2]
[385324712,1757776246957,-412.76232225,0.00027397,2]
[385324713,1757776246981,-56.94767775,0.00027397,2]
[385324714,1757776246991,-400.0,0.00027397,2]
[385324715,1757776247000,-400.0,0.00027397,2]
[385324716,1757776247010,-633.2,0.00027397,2]
[385324717,1757776247019,-400.0,0.00027397,2]
[385324718,1757776247029,-562.11195249,0.00027397,2]
[385324719,1757776247044,-233.44804751,0.00027397,2]
[385324720,1757776247054,-393.37850269,0.00027397,2]
[385324721,1757776247070,-6.62149731,0.00027397,2]
[385324722,1757776247080,-1042.67,0.00027397,2]
[385324723,1757776247289,-400.0,0.00027397,2]
[385324724,1757776247299,-400.0,0.00027397,2]
[385324725,1757776247309,-116.13945632,0.00027397,2]
[385324726,1757776288107,699.874,0.0002985,24]
[385324730,1757776606312,179.89998494,0.00032,120]
[385324732,1757776774123,160.0,0.00032,30]
[385324733,1757776784387,160.0,0.00032,45]
[385324734,1757776794296,160.0,0.00032,60]
[385324737,1757776876771,156.6,0.00012732,2]
[385324738,1757776877595,156.6,0.00015279,2]
[385324739,1757776877665,156.6,0.00017825,2]
[385324742,1757776888560,559.899,0.00029849,24]
[385324746,1757777118886,266.94,0.00025309,120]
[385324747,1757777119114,266.94,0.00028473,120]
[385324748,1757777119354,266.94,0.00031637,120]
[385324749,1757777170981,4836.43833528,0.000199,3]
[385324750,1757777194064,222.81231341,0.00032,120]
[385324751,1757777204976,31771.0,0.00032,30]
[385324753,1757777228777,162.09,0.00027425,30]
[385324760,1757777329328,700.0,0.00032,120]
[385324763,1757777364778,2691.0,0.00032,120]
[385324766,1757777377119,2000.0,0.00032,120]
[385324775,1757777431606,-1200.0,0.00020337,2]
[385324776,1757777431616,-300.0,0.00020337,2]
[385324777,1757777431625,-609.01942602,0.00020337,3]
[385324778,1757777431783,-1390.98057398,0.00020337,3]
[385324779,1757777431793,-500.0,0.00020338,2]
[385324780,1757777431802,-213.20150301,0.00020338,2]
[385324781,1757777431814,-286.79849699,0.00020338,2]
[385324782,1757777431823,-500.0,0.00020338,2]
[385324783,1757777431835,-260.31992832,0.00020338,2]
[385324784,1757777431844,-500.0,0.00020338,2]
[385324785,1757777431854,-364.53582979,0.00020338,2]
[385324786,1757777431863,-520.17549641,0.00020338,2]
[385324787,1757777431873,-500.0,0.00020338,2]
[385324788,1757777431882,-500.0,0.00020338,2]
[385324789,1757777431892,-500.0,0.00020338,2]
[385324790,1757777431901,-500.0,0.00020338,2]
[385324791,1757777431910,-500.0,0.00020338,2]
[385324792,1757777431920,-500.0,0.00020338,2]
[385324793,1757777431929,-500.0,0.00020338,2]
[385324794,1757777431939,-500.0,0.00020338,2]
[385324795,1757777431948,-500.0,0.00020338,2]
[385324796,1757777431957,-500.0,0.00020338,2]
[385324797,1757777431967,-500.0,0.00020338,2]
[385324798,1757777431976,-495.44325834,0.00020338,2]
[385324799,1757777432023,-4.55674166,0.00020338,2]
[385324801,1757777432032,-500.0,0.00020338,2]
[385324802,1757777432042,-28.84386087,0.00020338,2]
[385324803,1757777432054,-324.07494815,0.00020338,2]
[385324804,1757777432087,-147.08119098,0.00020338,2]
[385324805,1757777432097,-500.0,0.00020338,2]
[385324806,1757777432106,-500.0,0.00020338,2]
[385324807,1757777432116,-500.0,0.00020338,2]
[385324808,1757777432128,-500.0,0.00020338,2]
[385324810,1757777432137,-500.0,0.00020338,2]
[385324812,1757777432146,-2589.92101854,0.00020339,2]
[385324816,1757777432178,-1608.16788853,0.00020339,2]
[385324822,1757777432243,-3262.72093366,0.00020339,2]
[385324823,1757777432254,-659.47519999,0.00020339,2]
[385324834,1757777437472,-281.55,0.00020339,2]
[385324835,1757777437603,-12765.73192863,0.00020339,2]
[385324836,1757777437613,-1000.0,0.0002035,3]
[385324837,1757777437622,-210.76123702,0.00020364,2]
[385324838,1757777437632,-257.39718376,0.00020364,2]
[385324839,1757777437641,-490.44534065,0.00020364,2]
[385324840,1757777437651,-7994.62641443,0.00020365,2]
[385324841,1757777437661,-549.49065888,0.00020371,2]